Cogmind - Beta 17 *** ADVENTURER MODE // 2026.07.26 @ 10:46:50 Player: smokingfox Result: Destroyed by Y-45 Defender with Heavy Assault Rifle Performance ------------- Evolutions (0) 0 Regions Visited (3) 600 Robots Destroyed (38) 190 Value Destroyed (765) 765 Prototype IDs (17) 340 Alien Tech Used (0) 0 Bonus (0) 0 TOTAL SCORE: 1895 Bonus ------- None Cogmind --------- Core Integrity 0/250 Matter 168/300 Energy 250/250 System Corruption 0% Temperature Cool (25) Movement Core (1500) Ox29 Location -9/Recycling Parts ------- > --- POWER (1) -------- Ion Engine > --- PROPULSION (2) --- Subdweller Monowheel Subdweller Monowheel > --- UTILITY (2) ------ Huge Storage Unit > --- WEAPON (2) ------- Battle Rifle Battle Cannon > --- INVENTORY (25) --- Ion Engine Subdweller Power Source Makeshift Power Source Improved Heat Sink Disposable Heat Sink High-capacity Matter Pod (83) Weight Redist. System Subdweller Optics Makeshift Thermal Plating Scrap Shield Self-contained Transmogrifier Subdweller Laser Subdweller Beam Cannon Powered Cannon Assault Rifle Subdweller Machine Gun Barrage Gun Battle Cannon Subdweller Shrapnel Launcher Plasma Cutter Peak State ------------ > --- POWER ------------ Ion Engine > --- PROPULSION ------- Subdweller Monowheel Subdweller Monowheel > --- UTILITY ---------- Huge Storage Unit > --- WEAPON ----------- Battle Cannon Battle Cannon > --- INVENTORY -------- Ion Engine Subdweller Power Source Makeshift Power Source Improved Heat Sink Disposable Heat Sink High-capacity Matter Pod Weight Redist. System Subdweller Optics Makeshift Thermal Plating Scrap Shield Self-contained Transmogrifier Subdweller Laser Subdweller Beam Cannon Powered Cannon Assault Rifle Battle Rifle Subdweller Machine Gun Barrage Gun Battle Cannon Subdweller Shrapnel Launcher Plasma Cutter [Rating: 16] Favorites ----------- Power Light Ion Engine Engine Light Ion Engine Propulsion Light Treads Treads Light Treads Wheel Subdweller Monowheel Utility Huge Storage Unit Device Terrain Scanner Storage Huge Storage Unit Weapon Battle Cannon Energy Gun Small Laser Ballistic Gun Light Assault Rifle Ballistic Cannon Battle Cannon Build | -11 -10 -10 -9 ------- Run | Yrd Mat Sub Rec Slots Evolved . | . . . . Power . | . . . . Propulsion . | . . . . Utility . | . . . . Weapon . | . . . . Parts Attached 22 | 6 6 9 1 Power 4 | 1 1 2 . Engine 4 | 1 1 2 . Core . | . . . . Reactor . | . . . . Propulsion 5 | 2 . 3 . Treads 3 | 2 . 1 . Leg . | . . . . Wheel 2 | . . 2 . Hover . | . . . . Flight . | . . . . Utility 5 | 1 4 . . Device 2 | . 2 . . Storage 3 | 1 2 . . Processor . | . . . . Hackware . | . . . . Protection . | . . . . Artifact . | . . . . Weapon 8 | 2 1 4 1 Energy Gun 1 | 1 . . . Energy Cannon . | . . . . Ballistic Gun 2 | 1 . . 1 Ballistic Cannon 5 | . 1 4 . Launcher . | . . . . Special Weapon . | . . . . Impact Weapon . | . . . . Slashing Weapon . | . . . . Piercing Weapon . | . . . . Special Melee Weapon . | . . . . Unidentified Prototypes . | . . . . Parts Lost 9 | . 1 7 1 Power 3 | . 1 2 . Propulsion 3 | . . 3 . Utility 1 | . . 1 . Weapon 2 | . . 1 1 Highest Loss Streak 2 | . 1 2 1 To Critical Strikes . | . . . . Average Backups 17 | 2 10 21 20 Power 3 | 1 3 3 3 Propulsion 1 | . . 1 . Utility 4 | . 2 6 7 Weapon 6 | 1 2 9 8 Tool/Special . | . . . . Unused Backups 22 | . 1 2 19 Power 4 | . . 1 3 Propulsion . | . . . . Utility 7 | . 1 . 6 Weapon 9 | . . 1 8 Tool/Special 2 | . . . 2 Average Slot Usage (%) 95 | . 97 95 83 Engine 13 | . 13 13 14 Treads 24 | . 28 23 . Wheel 1 | . . . 28 Device 12 | . 11 13 . Storage 14 | . 14 14 14 Energy Gun 4 | . 13 . . Ballistic Gun 6 | . 14 2 8 Ballistic Cannon 16 | . . 25 18 Peak Build Rating 16 | 6 9 16 16 Average Rating 11 | 5 7 13 15 On Entrance 7 | . 6 8 16 Avg Prop Armor Cover (%) 4 | . . . 4 Naked Turns . | . . . . Heaviest Build 92 | 10 88 92 91 Greatest Support 46 | 40 46 40 40 Greatest Overweight (x) 30 | . 2 30 29 Average Overweight (x) 2 | . 1 2 2 Largest Inventory Capacity 25 | 8 25 25 25 Average Capacity 24 | 7 22 25 25 Most Carried 25 | 5 11 25 23 Average Carried 18 | 2 10 22 22 Final Capacity 25 | 8 25 25 25 Final Carried 23 | 4 11 23 22 Class Distribution -------------------- 100% | Mutant Dominant Class ---------------- Mutant | -10/Materials Mutant | -10/Subcaves Mutant | -9/Recycling Resources | -11 -10 -10 -9 ----------- Run | Yrd Mat Sub Rec Matter Collected 1354 | 276 332 712 34 Remotely . | . . . . Salvage Created 836 | 184 394 224 34 Parts 58 | 17 31 9 1 Haulers Intercepted 2 | . 2 . . Recyclers Shooed . | . . . . Parts Field Recycled . | . . . . Retrieved Matter . | . . . . Parts Self-Destructed 8 | . . 8 . Prevented . | . . . . Parts Restored . | . . . . Kills | -11 -10 -10 -9 ------- Run | Yrd Mat Sub Rec Combat Hostiles Destroyed 25 | . 13 11 1 Guns 13 | . 13 . . Cannons 12 | . . 11 1 Classes Destroyed 10 | 3 4 3 . Worker 2 | 2 . . . Tunneler 4 | 4 . . . Hauler 2 | . 2 . . Recycler 1 | 1 . . . Turret 2 | . . 2 . Watcher 2 | . 2 . . Swarmer 12 | . 9 3 . Grunt 5 | . 4 . 1 Cobbler 1 | . . 1 . Subdweller 8 | . . 8 . Best Kill Streak 6 | 6 3 2 1 Combat Bots Only 3 | . 3 2 1 Max Kills in Single Turn 2 | 1 2 1 1 Gunslinging 1 | . 1 . . Exploded . | . . . . Melee . | . . . . Uniques/NPCs Destroyed . | . . . . Combat | -11 -10 -10 -9 -------- Run | Yrd Mat Sub Rec Hostile Shots Fired 235 | . 71 144 20 Missed 66 | . 14 47 5 Hits 169 | . 57 97 15 Projectile 169 | . 57 97 15 Critical Strikes 1 | . . 1 . Damage Taken 1526 | . 376 991 159 Core 251 | . 58 164 29 Absorbed by Shields . | . . . . Ignored by Resistances 466 | . 124 298 44 Core Remaining (%) 100 | 100 . . . Volleys Fired 166 | 16 66 79 5 Largest 2 | 2 2 2 2 Hottest 66 | 60 60 66 58 Shots Fired 327 | 32 128 158 9 Gun 164 | 32 124 4 4 Cannon 163 | . 4 154 5 Launcher . | . . . . Special . | . . . . Kinetic 253 | 16 70 158 9 Thermal 74 | 16 58 . . Explosive . | . . . . Electromagnetic . | . . . . Robot Hit Streak 33 | 28 17 33 7 Robot Miss Streak 5 | . 5 2 1 Penetration Max . | . . . . Secondary Targets 2 | . 2 . . Max Gunslinging Chain 1 | . 1 . . Shots Hit Robots 197 | 28 77 85 7 Core Hits 66 | 12 29 23 2 Critical Kills . | . . . . Critical Parts Destroyed 1 | . 1 . . Critical Strikes 5 | . 1 4 . Destroy 1 | . 1 . . Blast 4 | . . 4 . Melee Attacks . | . . . . Impact . | . . . . Slashing . | . . . . Piercing . | . . . . Sneak Attacks . | . . . . Combat Hostiles . | . . . . Follow-up Attacks . | . . . . Damage Inflicted 2843 | 263 734 1704 142 Guns 1047 | 263 734 . 50 Cannons 1796 | . . 1704 92 Explosions . | . . . . Melee . | . . . . Ramming . | . . . . Kinetic 2259 | 90 323 1704 142 Thermal 584 | 173 411 . . Explosive . | . . . . Electromagnetic . | . . . . Impact . | . . . . Slashing . | . . . . Piercing . | . . . . Highest Corruption . | . . . . Average Corruption . | . . . . Corruption Purged . | . . . . Corruption Blocked . | . . . . Overload Shots . | . . . . Overflow Damage 28 | . . 28 . Projectiles 28 | . . 28 . Explosions . | . . . . Melee . | . . . . Knockbacks 27 | . . 27 . Impact . | . . . . Kinetic 26 | . . 26 . Secondary 1 | . . 1 . Self-Inflicted Damage . | . . . . Shots . | . . . . Rammed . | . . . . Targets Rammed . | . . . . Kicked . | . . . . Crushed . | . . . . Highest Temperature 82 | 40 82 . 28 Average Temperature 18 | 15 19 . 16 Received Heat Transfer 402 | . 78 252 72 Siege Activations . | . . . . Martial Activations . | . . . . Shielding Activations . | . . . . Robots Disrupted . | . . . . Combat Hostiles . | . . . . Robots Corrupted . | . . . . Combat Hostiles . | . . . . Parts Fried . | . . . . Impact Corruptions . | . . . . Robots Melted . | . . . . Combat Hostiles . | . . . . Parts Melted 1 | . 1 . . Heat Transferred 1325 | 400 925 . . Parts Sabotaged . | . . . . Parts Stolen . | . . . . Parts Stripped . | . . . . Power Chain Reactions . | . . . . Alert | -11 -10 -10 -9 ------- Run | Yrd Mat Sub Rec Maximum Alert Level . | . . . . Low Security (%) 100 | 100 100 . 100 Level 1 . | . . . . Level 2 . | . . . . Level 3 . | . . . . Level 4 . | . . . . Level 5 . | . . . . High Security . | . . . . Max Security . | . . . . Peak Influence 80 | 10 80 . 29 Initial 14 | . 2 . 14 Average 3 | 3 4 . 3 Influence Increases 641 | 35 417 160 29 Destroy 0b10 Robot/C 380 | . 260 100 20 Destroy 0b10 Robot/NC 55 | 35 20 . . Destroy Leader 58 | . 58 . . Successful Hack 34 | . 34 . . Disable Machine 9 | . . . 9 Lose Combat Pursuer 105 | . 45 60 . Influence Decreases 641 | 30 422 125 64 Entered New Map 24 | . 3 . 21 Time Decay 597 | 30 409 115 43 Lost Part 20 | . 10 10 . Squads Dispatched 1 | . 1 . . Investigation 1 | . 1 . . Extermination . | . . . . Reinforcement . | . . . . Assault . | . . . . Garrison . | . . . . Intercept . | . . . . Searches Triggered . | . . . . Construction Impeded . | . . . . Haulers Reinforced . | . . . . Active Scanning Responses . | . . . . Cargo Convoy Interrupts . | . . . . Stealth | -11 -10 -10 -9 --------- Run | Yrd Mat Sub Rec Distress Signals . | . . . . Communications Jammed . | . . . . Distress Signals . | . . . . Times Spotted 49 | . 31 15 3 Peak Tracking Total 4 | . 4 3 2 Tactical Retreats 5 | . 2 3 . Traps | -11 -10 -10 -9 ------- Run | Yrd Mat Sub Rec Traps Triggered 2 | . 2 . . Indirectly . | . . . . Trap Hack Attempts . | . . . . Triggered . | . . . . Disarmed . | . . . . Reprogrammed . | . . . . Reused . | . . . . Traps Extracted . | . . . . Installed . | . . . . Triggered . | . . . . Machines | -11 -10 -10 -9 ---------- Run | Yrd Mat Sub Rec Machines Disabled 4 | . . 3 1 Max in Single Turn 1 | . . 1 1 Machines Repaired . | . . . . Machines Dismantled . | . . . . Machines Sabotaged . | . . . . Overloaded Fab Kills . | . . . . Hacking | -11 -10 -10 -9 --------- Run | Yrd Mat Sub Rec Machines Accessed 13 | . 8 3 2 Terminals 9 | . 8 . 1 Fabricators . | . . . . Repair Stations . | . . . . Recycling Units 1 | . . . 1 Scanalyzers . | . . . . Garrison Access . | . . . . Total Hacks 40 | . 23 12 5 Successful 27 | . 14 12 1 Failed 13 | . 9 . 4 Catastrophic 2 | . 1 . 1 Database Lockouts . | . . . . Manual . | . . . . Terminals 26 | . 23 . 3 Fabricators . | . . . . Repair Stations . | . . . . Recycling Units 2 | . . . 2 Scanalyzers . | . . . . Garrison Access . | . . . . Terminal Hacks 27 | . 14 12 1 Record 13 | . 3 9 1 Prototype ID Bank 3 | . 3 . . Open Door 1 | . . 1 . Branch Access Points 1 | . 1 . . Locate Traps 2 | . 2 . . Dispatch Records 1 | . 1 . . Hauler Manifests 1 | . 1 . . Zone Layout 3 | . 3 . . Proto ID Catalog 1 | . . 1 . Release Object 1 | . . 1 . Fabricator Hacks . | . . . . Repair Station Hacks . | . . . . Recycling Unit Hacks . | . . . . Scanalyzer . | . . . . Garrison Access Hacks . | . . . . Unauthorized Hacks . | . . . . Terminals . | . . . . Fabricators . | . . . . Repair Stations . | . . . . Recycling Units . | . . . . Scanalyzers . | . . . . Garrison Access . | . . . . Data Cores Recovered . | . . . . Used . | . . . . Hacking Detections 9 | . 7 . 2 Full Trace Events 1 | . . . 1 Feedback Events . | . . . . Feedback Blocked . | . . . . Robot Schematics Acquired . | . . . . Robots Built . | . . . . Authchips . | . . . . Time . | . . . . Total Robot Build Rating . | . . . . Part Schematics Acquired . | . . . . Parts Built . | . . . . Authchips . | . . . . Time . | . . . . Total Part Build Rating . | . . . . Part Studies Acquired . | . . . . Parts Repaired . | . . . . Time . | . . . . Parts Recycled . | . . . . Recycled Matter . | . . . . Retrieved Matter . | . . . . Retrieved Components . | . . . . Parts Scanalyzed . | . . . . Part Schematics Acquired . | . . . . Parts Damaged . | . . . . Bothacking | -11 -10 -10 -9 ------------ Run | Yrd Mat Sub Rec Used RIF Installer . | . . . . Robots Hacked . | . . . . Non-combat . | . . . . Combat . | . . . . Robot Hacks Applied . | . . . . Relay Couplers Released . | . . . . Fabnet Peak Effective % . | . . . . Robots Rewired . | . . . . Allies Hacked . | . . . . Hacks Repelled . | . . . . Allies | -11 -10 -10 -9 -------- Run | Yrd Mat Sub Rec Total Allies . | . . . . Largest Group . | . . . . Highest-Rated Group . | . . . . Highest-Rated Ally . | . . . . Total Orders . | . . . . Ally Attacks . | . . . . Total Damage . | . . . . Kills . | . . . . Allies Corrupted . | . . . . Allies Melted . | . . . . Intel | -11 -10 -10 -9 ------- Run | Yrd Mat Sub Rec Active Infowar (turns) 14643 | . 4232 10411 . Terrain 14643 | . 4232 10411 . Robot Analysis Total . | . . . . Derelict Logs Recovered 3 | . . 3 . Drone Launches . | . . . . Drone Recoveries . | . . . . Exploration | -11 -10 -10 -9 ------------- Run | Yrd Mat Sub Rec Turns Passed 16745 | 139 5581 10669 356 Spaces Moved 4831 | 59 1770 2773 229 Core 44 | 14 . 28 2 Treads 4401 | 45 1770 2586 . Legs . | . . . . Wheels 386 | . . 159 227 Hover . | . . . . Flight . | . . . . Fastest Speed 50 | 50 160 130 130 Average Speed 300 | 133 259 343 145 Slowest Speed 1550 | 160 320 1550 1500 Overloaded Moves . | . . . . Propulsion Burnouts . | . . . . Robots Hopped . | . . . . Potential Cave-ins . | . . . . Cave-ins Triggered . | . . . . Exploration Rate (%) 62 | 4 99 95 53 Regions Visited 3 Branch Regions 2 Pre-discovered Areas 3 | . . 3 . Known Exits Taken . | . . . . Unknown Exits Taken 3 | 1 1 1 . Scrap Searched 14 | . . 14 . Spaces Dug . | . . . . Terrain Destroyed 3 | . . 3 . Melee . | . . . . Projectile 3 | . . 3 . AOE . | . . . . Terrain Rammed . | . . . . Walls Destroyed . | . . . . Machines Disabled . | . . . . Actions | -11 -10 -10 -9 --------- Run | Yrd Mat Sub Rec Total 6752 | 90 2644 3774 244 Wait 1681 | . 788 884 9 Move 4828 | 58 1769 2772 229 Hop . | . . . . Pick Up 44 | 10 12 22 . Fast Attach . | . . . . Attach 16 | 6 3 6 1 Detach . | . . . . Swap 6 | . 3 3 . Drop 11 | . 3 8 . Fire 166 | 16 66 79 5 Melee . | . . . . Ram . | . . . . Kick . | . . . . Crush . | . . . . Escape Stasis . | . . . . Rewire . | . . . . Trap . | . . . . Miscellaneous . | . . . . Route ------- -11/Scrapyard -10/Materials (discovered 5 exits: [*Mat x3] / *Min / *Sub) -10/Subcaves (discovered 3 exits: [*Mat x2] / *Rec) -9/Recycling History --------- Turn | Location | Event 6 | -11/Scrapyard | Discovered new exit (range 15) 140 | -11/Scrapyard | Entered Materials 303 | -10/Materials | Build established: Mutant 594 | -10/Materials | Discovered new exit (range 8) 697 | -10/Materials | Discovered new exit (range 5) 1083 | -10/Materials | Discovered new exit (range 7) 1212 | -10/Materials | Discovered new exit (range 8) 1234 | -10/Materials | Identified exit to Mines 5461 | -10/Materials | Discovered new exit (range 13) 5721 | -10/Materials | Entered Subcaves 5721 | -10/Subcaves | Learned location of Zion (-7) 7569 | -10/Subcaves | Disturbed a concealed Subdweller 7879 | -10/Subcaves | Learned location of Recycling (-9) 7959 | -10/Subcaves | Visited 4L-MR0's lab 7990 | -10/Subcaves | Found Prototype Device 8000 | -10/Subcaves | Found Powered Cannon 10567 | -10/Subcaves | A swath of the cavern ceiling suddenly collapsed 13230 | -10/Subcaves | Discovered new exit (range 14) 13402 | -10/Subcaves | Shifting Twisted Machinery released Mak. Hammer 13415 | -10/Subcaves | Shifting Twisted Machinery released Battle Cannon 13542 | -10/Subcaves | Shifting Twisted Machinery released Sub. Machine Gun 13745 | -10/Subcaves | Core integrity fell below 50% 13835 | -10/Subcaves | Shifting Twisted Machinery released Scrap Shield 13859 | -10/Subcaves | Shifting Twisted Machinery released Flamer 13937 | -10/Subcaves | Shifting Twisted Machinery released Battle Cannon 15656 | -10/Subcaves | Discovered new exit (range 5) 16047 | -10/Subcaves | Discovered new exit (range 12) 16140 | -10/Subcaves | Core integrity fell below 20% 16390 | -10/Subcaves | Entered Recycling 16746 | -9/Recycling | Destroyed by Y-45 Defender with Heavy Assault Rifle Last Messages --------------- Acquired 2 matter. LOCATION=UNKNOWN GOAL=ESCAPE Connecting with Terminal... Current location identified: Recycling >>Query(Recycling Unit) Deconstruction apparatus for breaking down old components delivered by Recycler class robots. Condensed matter is contained within the unit until it reaches a certain quota, at which point it is transferred to the nearest [DSF]. Connecting with Recycling Unit... G-34 Mercenary springs to life. Battle Cannon destroyed. G-34 Mercenary destroyed. Electrolysis Chamber disabled. Acquired 34 matter. Sub. Monowheel shoots sparks and powers down. Y-45 Defender springs to life. Sub. Monowheel shoots sparks and powers down. Map ----- +----------------------------------------------------+ | ???????????##########???# ## + | | ???????????# #??## ## # | | ???#######?# #??? ## # | | ???# #?# #???# ########### | | ???# #?# """ #?### #?????????# | | ???# " #?# """ #?#"" #????#######+# | | ???# """ #?# """ #?#"Y #????# | | ???# "" #?# """ #??"" #????# | | ???# """ #?# """ #???# #????# | | ???# "" #?# #???# #????# | | ???# """ #?#####+######## #????# | | ???# """ ###### ###### | | ???# """ / + | | ???# " ###### r ###### | | ???# #????# ########+#####?# | | ???# #????# r #???# #?# | | ???# ###### """ #???# "" """#?# | | ???# #"""## """ #???# "T """#?###### ## | | ???####+##"Y"## """ #???# "" """#??????###? | | ???# """ #???# #?????????? | | ???# """ #???# """#?????????? | | ???# ##### """#?????????? | | ???# +% ""#?????????? | | ??##+###### Y##### #?????????? | | ??# #??## ######### #???##########?????????? | | ??# #???# #???????#@#??????????????????????? | | ??# #???# #???#####/##?????????????????????? | | ??# #???# #?? ! #?????????????????????? | | ??# #???# #?? ! !! !#?????????????????????? | | ??# #??## ## #?????????????????????? | | ??# #### # ! #?????????????????????? | | ??# + +! ! #?????????????????????? | | ??# #### # #?????????????????????? | | ??# #??##### #?????????????????????? | | ??# #???????? ! ! #?????????????????????? | | ?# #????????#########?????????????????????? | | ?## #??????????????????????????????????????? | | ??#### #??????????????????????????????????????? | | ?????###??????????????????????????????????????? | | ??????????????????????????????????????????????? | | ??????????????????????????????????????????????? | | ??????????????????????????????????????????????? | | ??????????????????????????????????????????????? | | ??????????????????????????????????????????????? | | ??????????????????????????????????????????????? | | ??????????????????????????????????????????????? | | ??????????????????????????????????????????????? | | ??????????????????????????????????????????????? | | ??????????????????????????????????????????????? | | ??????????????????????????????????????????????? | +----------------------------------------------------+ Best States ------------- Heat Dissipation 25 Energy Generation 10 Energy Capacity 250 Matter Stores 300 Matter Capacity 300 Sight Range 16 Terrain Scan Range 14 Terrain Scan Density 10 Additional Mass Support 6 Resistance: KI 20 Resistance: TH 20 Resistance: EX 20 Resistance: EM 20 Resistance: I 20 Resistance: S 20 Resistance: P 20 Evasion (%) 50 Recoil Reduction 2 Offensive Hacking 10 Item Schematics ----------------- None Robot Schematics ------------------ None Fabricated ------------ Nothing Repaired ---------- Nothing Studied --------- None Alien Tech Used ----------------- None Achievements -------------- None Challenges ------------ None Game ------ Seed LobotomyTrackerReprisal Manual? 0 Play Time 00:40:12 Cumulative 42.5 hours Start 2026.07.26 @ 10:08:18 End 2026.07.26 @ 10:46:50 Sessions 1 Manual Loads 0 Difficulty Adventurer Special Mode None Game No. 58 Rogue 7 Adventurer 51 Explorer 0 Win Type - Total 0 Types 0/0/0/0/0/0/0/0/0/0 Lore% 50 Gallery% 33 Achievement% 27 Wizard Run 0 Options --------- Layout 1 ASCII 0 Keyboard 0 Movement Mouse Keybinds 0 Fullscreen 1 Font 48/Smallcaps Map View 50x35 Zoom Use 0% Tactical HUD 0 Map Filters NONE Filters NONE Steam 1 RUN: a8faf60c-8e26-4b84-b22e-600a03c306c2